[Event "*** Titled Tuesday 3|2 Blitz"]
[Site "Chess.com"]
[Date "2015.12.01"]
[Round "7"]
[White "Makalexa"]
[Black "ilmago"]
[Result "0-1"]
[WhiteElo "2027"]
[BlackElo "1914"]
[TimeControl "180+2"]
[EndTime "12:31:09 PST"]
[Termination "ilmago won by checkmate"]

1. e4 {[%clk 0:03:01.9]} 1... c5 {[%clk 0:02:59.1]} 2. Nf3 {[%clk 0:03:01.4]}
2... d6 {[%clk 0:02:58.1]} 3. Bc4 {[%clk 0:03:02.1]} 3... e6 {[%clk 0:02:57.7]}
4. d4 {[%clk 0:03:00.3]} 4... cxd4 {[%clk 0:02:56.7]} 5. Qxd4 {[%clk 0:03:00.7]}
5... Nc6 {[%clk 0:02:54.4]} 6. Qd1 {[%clk 0:02:58.2]} 6... Nf6 {[%clk
0:02:52.9]} 7. Nc3 {[%clk 0:02:57]} 7... Be7 {[%clk 0:02:52.2]} 8. Bf4 {[%clk
0:02:54.7]} 8... O-O {[%clk 0:02:51.7]} 9. O-O {[%clk 0:02:50.5]} 9... a6 {[%clk
0:02:50.1]} 10. a4 {[%clk 0:02:50.6]} 10... Qc7 {[%clk 0:02:43.5]} 11. Re1
{[%clk 0:02:49.2]} 11... Na5 {[%clk 0:02:32.9]} 12. Ba2 {[%clk 0:02:45.7]} 12...
Nc4 {[%clk 0:02:32.7]} 13. Qe2 {[%clk 0:02:30]} 13... Nxb2 {[%clk 0:02:26.8]}
14. Bd2 {[%clk 0:02:28.5]} 14... Bd7 {[%clk 0:02:20.9]} 15. Bb3 {[%clk
0:02:27.5]} 15... Rfc8 {[%clk 0:02:20.9]} 16. e5 {[%clk 0:02:24.2]} 16... dxe5
{[%clk 0:02:18.9]} 17. Nxe5 {[%clk 0:02:24.4]} 17... Bb4 {[%clk 0:02:09.1]} 18.
Ne4 {[%clk 0:01:46.5]} 18... Bxd2 {[%clk 0:01:58.6]} 19. Qxd2 {[%clk 0:00:39.4]}
19... Qxe5 {[%clk 0:00:47]} 20. Nxf6+ {[%clk 0:00:39.8]} 20... Qxf6 {[%clk
0:00:48.9]} 21. Qxd7 {[%clk 0:00:36.6]} 21... Nc4 {[%clk 0:00:42]} 22. Qxb7
{[%clk 0:00:32.1]} 22... Nd6 {[%clk 0:00:40.3]} 23. Qb4 {[%clk 0:00:26.8]} 23...
Rd8 {[%clk 0:00:36.2]} 24. Rad1 {[%clk 0:00:26.1]} 24... Qg5 {[%clk 0:00:31]}
25. g3 {[%clk 0:00:23.1]} 25... Nf5 {[%clk 0:00:22.6]} 26. Rxd8+ {[%clk
0:00:20.2]} 26... Qxd8 {[%clk 0:00:22.8]} 27. Qe4 {[%clk 0:00:15.3]} 27... Nd6
{[%clk 0:00:21.5]} 28. Qg4 {[%clk 0:00:10.8]} 28... Qc7 {[%clk 0:00:20.1]} 29.
h4 {[%clk 0:00:11.1]} 29... Rc8 {[%clk 0:00:19.9]} 30. h5 {[%clk 0:00:09.1]}
30... Qc3 {[%clk 0:00:19.9]} 31. h6 {[%clk 0:00:08.6]} 31... Qxe1+ {[%clk
0:00:19.5]} 32. Kh2 {[%clk 0:00:07.8]} 32... Qc3 {[%clk 0:00:20]} 33. f4 {[%clk
0:00:05.6]} 33... Nf5 {[%clk 0:00:19.5]} 34. Qg5 {[%clk 0:00:05.7]} 34... Qd2+
{[%clk 0:00:16.6]} 35. Kh3 {[%clk 0:00:05.7]} 35... Qe3 {[%clk 0:00:12.2]} 36.
hxg7 {[%clk 0:00:05.7]} 36... Nxg7 {[%clk 0:00:09]} 37. Kg4 {[%clk 0:00:05.5]}
37... Qe2+ {[%clk 0:00:09.7]} 38. Kh4 {[%clk 0:00:06.1]} 38... Qh2+ {[%clk
0:00:09.2]} 39. Kg4 {[%clk 0:00:07.1]} 39... Qe2+ {[%clk 0:00:09.4]} 40. Kh4
{[%clk 0:00:07.8]} 40... h6 {[%clk 0:00:08.8]} 41. Qf6 {[%clk 0:00:07.6]} 41...
Qh2+ {[%clk 0:00:08.8]} 42. Kg4 {[%clk 0:00:08.2]} 42... Qh5# {[%clk 0:00:08.6]}
0-1

[Event "*** Titled Tuesday 3|2 Blitz"]
[Site "Chess.com"]
[Date "2015.12.01"]
[Round "7"]
[White "swayamsm"]
[Black "Gergo85"]
[Result "1/2-1/2"]
[WhiteElo "2449"]
[BlackElo "2355"]
[TimeControl "180+2"]
[EndTime "12:31:19 PST"]
[Termination "Game drawn by agreement"]

1. d4 {[%clk 0:03:01.9]} 1... d5 {[%clk 0:03:00.6]} 2. c4 {[%clk 0:03:00.6]}
2... dxc4 {[%clk 0:03:01.9]} 3. Nf3 {[%clk 0:03:02.5]} 3... a6 {[%clk 0:03:01]}
4. a4 {[%clk 0:02:50.8]} 4... Nf6 {[%clk 0:02:58.7]} 5. e3 {[%clk 0:02:51.4]}
5... Bg4 {[%clk 0:02:59.5]} 6. Bxc4 {[%clk 0:02:51]} 6... e6 {[%clk 0:03:00.6]}
7. O-O {[%clk 0:02:45.2]} 7... Nc6 {[%clk 0:03:00.9]} 8. h3 {[%clk 0:02:41.6]}
8... Bh5 {[%clk 0:03:01.4]} 9. Be2 {[%clk 0:02:40.4]} 9... Bd6 {[%clk
0:02:58.7]} 10. Nc3 {[%clk 0:02:40.1]} 10... O-O {[%clk 0:02:58.8]} 11. Kh1
{[%clk 0:02:30.9]} 11... Qe8 {[%clk 0:02:56.6]} 12. e4 {[%clk 0:02:28.6]} 12...
Bxf3 {[%clk 0:02:42.3]} 13. Bxf3 {[%clk 0:02:26.5]} 13... Rd8 {[%clk 0:02:41.7]}
14. Be3 {[%clk 0:02:21.7]} 14... Bc5 {[%clk 0:02:30.2]} 15. e5 {[%clk
0:01:42.1]} 15... Nxe5 {[%clk 0:02:18.8]} 16. Bxb7 {[%clk 0:01:41.3]} 16... Nc6
{[%clk 0:02:12.4]} 17. Ne2 {[%clk 0:01:22.9]} 17... Nxd4 {[%clk 0:01:52.9]} 18.
Nxd4 {[%clk 0:01:22.5]} 18... Bxd4 {[%clk 0:01:36.2]} 19. Bxd4 {[%clk
0:01:24.4]} 19... e5 {[%clk 0:01:37.3]} 20. Bxa6 {[%clk 0:01:07.2]} 20... Rxd4
{[%clk 0:01:33.6]} 21. Qc2 {[%clk 0:01:08.3]} 21... Qd7 {[%clk 0:01:21]} 22. a5
{[%clk 0:01:03.3]} 22... Ne4 {[%clk 0:01:13.1]} 23. Bb7 {[%clk 0:01:00.9]} 23...
Nd2 {[%clk 0:01:00.4]} 24. Rfe1 {[%clk 0:00:48.3]} 24... Rc4 {[%clk 0:00:44.8]}
25. Qd1 {[%clk 0:00:47.6]} 25... Rd4 {[%clk 0:00:35.3]} 26. Qe2 {[%clk
0:00:42.2]} 26... Nb3 {[%clk 0:00:36.1]} 27. Ra3 {[%clk 0:00:38.8]} 27... Nc5
{[%clk 0:00:36]} 28. a6 {[%clk 0:00:35.7]} 28... Nxb7 {[%clk 0:00:30.1]} 29.
axb7 {[%clk 0:00:37.6]} 29... Rb4 {[%clk 0:00:31.4]} 30. Ra7 {[%clk 0:00:27.9]}
30... Qd4 {[%clk 0:00:25.3]} 31. Qe3 {[%clk 0:00:24.5]} 31... Qxe3 {[%clk
0:00:17.8]} 32. Rxe3 {[%clk 0:00:26.4]} 32... Rb8 {[%clk 0:00:19.1]} 33. Rxe5
{[%clk 0:00:24.4]} 33... g6 {[%clk 0:00:20.2]} 34. Re7 {[%clk 0:00:22.5]} 34...
R4xb7 {[%clk 0:00:19.7]} 35. Rxc7 {[%clk 0:00:23.8]} 35... Rxa7 {[%clk
0:00:20.9]} 36. Rxa7 {[%clk 0:00:24.1]} 36... Rxb2 {[%clk 0:00:22.5]} 37. f3
{[%clk 0:00:22.4]} 37... h5 {[%clk 0:00:24]} 38. Kh2 {[%clk 0:00:21.8]} 38...
Kg7 {[%clk 0:00:25.9]} 39. h4 {[%clk 0:00:21.8]} 39... Kf6 {[%clk 0:00:25.8]}
40. Kg3 {[%clk 0:00:21.5]} 40... Rb4 {[%clk 0:00:26.8]} 41. Ra6+ {[%clk
0:00:22.1]} 41... Kg7 {[%clk 0:00:27.7]} 42. Ra5 {[%clk 0:00:24]} 42... Rc4
{[%clk 0:00:28.7]} 43. Kh3 {[%clk 0:00:25.3]} 43... Rb4 {[%clk 0:00:28.6]} 44.
Ra3 {[%clk 0:00:24.2]} 44... Rc4 {[%clk 0:00:29.6]} 45. g4 {[%clk 0:00:25.2]}
45... hxg4+ {[%clk 0:00:29.9]} 46. fxg4 {[%clk 0:00:27.1]} 46... Rb4 {[%clk
0:00:31]} 47. Kg3 {[%clk 0:00:28.2]} 47... Rc4 {[%clk 0:00:32.2]} 48. Rf3 {[%clk
0:00:29.4]} 48... Rb4 {[%clk 0:00:33.1]} 49. Rf4 {[%clk 0:00:21.8]} 49... Rb3+
{[%clk 0:00:34.3]} 50. Rf3 {[%clk 0:00:21.9]} 50... Rb4 {[%clk 0:00:35.5]} 51.
Re3 {[%clk 0:00:23.5]} 51... Rc4 {[%clk 0:00:36.6]} 52. Kf3 {[%clk 0:00:24]}
52... Rb4 {[%clk 0:00:37.9]} 53. Re4 {[%clk 0:00:24.5]} 53... Rxe4 {[%clk
0:00:36.8]} 54. Kxe4 {[%clk 0:00:26.4]} 54... f5+ {[%clk 0:00:38]} 55. gxf5
{[%clk 0:00:27]} 55... gxf5+ {[%clk 0:00:39.2]} 56. Kxf5 {[%clk 0:00:28.3]}
56... Kh6 {[%clk 0:00:38]} 1/2-1/2

[Event "*** Titled Tuesday 3|2 Blitz"]
[Site "Chess.com"]
[Date "2015.12.01"]
[Round "7"]
[White "MateusViageiro"]
[Black "chessloveyou"]
[Result "0-1"]
[WhiteElo "2262"]
[BlackElo "2144"]
[TimeControl "180+2"]
[EndTime "12:31:30 PST"]
[Termination "chessloveyou won on time"]

1. e4 {[%clk 0:03:01.9]} 1... c6 {[%clk 0:02:57.4]} 2. d4 {[%clk 0:03:02.1]}
2... d5 {[%clk 0:02:56.2]} 3. Nc3 {[%clk 0:03:03.5]} 3... dxe4 {[%clk
0:02:56.9]} 4. Nxe4 {[%clk 0:03:04.6]} 4... Nf6 {[%clk 0:02:57.5]} 5. Nxf6+
{[%clk 0:03:05.3]} 5... gxf6 {[%clk 0:02:59.2]} 6. c3 {[%clk 0:03:06.4]} 6...
Bg7 {[%clk 0:02:57.4]} 7. Nf3 {[%clk 0:03:07.3]} 7... Bg4 {[%clk 0:02:57.6]} 8.
h3 {[%clk 0:03:07]} 8... Bh5 {[%clk 0:02:58]} 9. Be2 {[%clk 0:03:07.9]} 9... Nd7
{[%clk 0:02:58.2]} 10. Bf4 {[%clk 0:03:07.5]} 10... e5 {[%clk 0:02:56.7]} 11.
Be3 {[%clk 0:02:47.3]} 11... O-O {[%clk 0:02:39.8]} 12. Qd2 {[%clk 0:02:44.9]}
12... e4 {[%clk 0:02:35.3]} 13. Nh4 {[%clk 0:02:41.8]} 13... Bg6 {[%clk
0:02:35.7]} 14. g4 {[%clk 0:02:41.1]} 14... Qa5 {[%clk 0:02:26.1]} 15. Bh6
{[%clk 0:02:39.9]} 15... Bxh6 {[%clk 0:02:19.3]} 16. Qxh6 {[%clk 0:02:34.3]}
16... Qg5 {[%clk 0:02:19.1]} 17. Qxg5 {[%clk 0:02:29.5]} 17... fxg5 {[%clk
0:02:19.5]} 18. Ng2 {[%clk 0:02:28.6]} 18... Nb6 {[%clk 0:02:15.9]} 19. Ne3
{[%clk 0:02:28.1]} 19... Nd5 {[%clk 0:02:15.4]} 20. Bc4 {[%clk 0:02:22]} 20...
Nxe3 {[%clk 0:02:11.6]} 21. fxe3 {[%clk 0:02:22.1]} 21... Kg7 {[%clk 0:02:12.9]}
22. h4 {[%clk 0:02:20.5]} 22... gxh4 {[%clk 0:02:12.3]} 23. Rxh4 {[%clk
0:02:18.6]} 23... f5 {[%clk 0:02:13.1]} 24. gxf5 {[%clk 0:02:16.3]} 24... Rxf5
{[%clk 0:01:43.1]} 25. O-O-O {[%clk 0:02:12.8]} 25... Rf3 {[%clk 0:01:37.4]} 26.
Re1 {[%clk 0:02:09.9]} 26... Raf8 {[%clk 0:01:37.7]} 27. Bb3 {[%clk 0:02:06.4]}
27... Rf1 {[%clk 0:01:31.2]} 28. Rh1 {[%clk 0:02:00.5]} 28... Rxh1 {[%clk
0:01:28.1]} 29. Rxh1 {[%clk 0:02:00.4]} 29... Rf3 {[%clk 0:01:27.2]} 30. Re1
{[%clk 0:02:01]} 30... Rf2 {[%clk 0:01:22.4]} 31. Bd1 {[%clk 0:01:57.4]} 31...
h5 {[%clk 0:01:22.5]} 32. Rg1 {[%clk 0:01:57.9]} 32... Kh6 {[%clk 0:01:22.1]}
33. c4 {[%clk 0:01:52.3]} 33... Bf5 {[%clk 0:01:16.8]} 34. d5 {[%clk 0:01:42.9]}
34... cxd5 {[%clk 0:01:17.1]} 35. cxd5 {[%clk 0:01:44]} 35... h4 {[%clk
0:01:18.1]} 36. d6 {[%clk 0:01:39.6]} 36... h3 {[%clk 0:01:17.8]} 37. Rg8 {[%clk
0:01:27.3]} 37... h2 {[%clk 0:01:16.3]} 38. Rh8+ {[%clk 0:01:24]} 38... Kg5
{[%clk 0:01:07.2]} 39. Rh5+ {[%clk 0:01:04.3]} 39... Kf6 {[%clk 0:01:04.2]} 40.
Rh6+ {[%clk 0:00:52.5]} 40... Ke5 {[%clk 0:01:03.6]} 41. a4 {[%clk 0:00:44.5]}
41... Be6 {[%clk 0:00:59.6]} 42. b4 {[%clk 0:00:29.1]} 42... Kxd6 {[%clk
0:00:52.7]} 43. b5 {[%clk 0:00:16.8]} 43... Kc5 {[%clk 0:00:46.6]} 44. Rh5+
{[%clk 0:00:09.3]} 44... Kb4 {[%clk 0:00:46.4]} 45. Rh4 {[%clk 0:00:07.4]} 45...
Kc3 {[%clk 0:00:45.9]} 46. Rh5 {[%clk 0:00:05.8]} 46... Bc4 {[%clk 0:00:43]} 47.
Rh4 {[%clk 0:00:04.1]} 47... b6 {[%clk 0:00:42.5]} 48. Rh6 {[%clk 0:00:03.9]}
48... Ra2 {[%clk 0:00:39.4]} 49. Bc2 {[%clk 0:00:03.1]} 49... Rxc2+ {[%clk
0:00:38.5]} 0-1

[Event "*** Titled Tuesday 3|2 Blitz"]
[Site "Chess.com"]
[Date "2015.12.01"]
[Round "7"]
[White "AndrewMcStone"]
[Black "DaPazz"]
[Result "1-0"]
[WhiteElo "1996"]
[BlackElo "1816"]
[TimeControl "180+2"]
[EndTime "12:32:06 PST"]
[Termination "AndrewMcStone won on time"]

1. d4 {[%clk 0:03:01.9]} 1... d5 {[%clk 0:02:58.2]} 2. c4 {[%clk 0:03:02.7]}
2... e6 {[%clk 0:02:58.2]} 3. Nc3 {[%clk 0:03:03.3]} 3... Nf6 {[%clk 0:02:58.1]}
4. cxd5 {[%clk 0:03:04]} 4... exd5 {[%clk 0:02:57.5]} 5. Bg5 {[%clk 0:03:05.3]}
5... Be7 {[%clk 0:02:57.9]} 6. e3 {[%clk 0:03:06.6]} 6... O-O {[%clk 0:02:57.8]}
7. Bd3 {[%clk 0:03:07.7]} 7... c6 {[%clk 0:02:57.9]} 8. Qc2 {[%clk 0:03:08.6]}
8... Nbd7 {[%clk 0:02:58.9]} 9. Nge2 {[%clk 0:03:09.8]} 9... Re8 {[%clk
0:02:58.8]} 10. f3 {[%clk 0:03:03.7]} 10... h6 {[%clk 0:02:54.9]} 11. Bh4 {[%clk
0:03:03.3]} 11... b5 {[%clk 0:02:35.6]} 12. O-O {[%clk 0:02:57]} 12... b4 {[%clk
0:02:21.3]} 13. Na4 {[%clk 0:02:54]} 13... Bb7 {[%clk 0:02:22.7]} 14. Rac1
{[%clk 0:02:42.7]} 14... Nf8 {[%clk 0:02:07.4]} 15. Nc5 {[%clk 0:02:33.5]} 15...
Bxc5 {[%clk 0:02:03.5]} 16. Qxc5 {[%clk 0:02:26.7]} 16... a5 {[%clk 0:02:03.9]}
17. Bf2 {[%clk 0:02:08.6]} 17... Ne6 {[%clk 0:01:58.3]} 18. Qc2 {[%clk
0:02:08.8]} 18... a4 {[%clk 0:01:54.6]} 19. Kh1 {[%clk 0:01:47.5]} 19... Qb6
{[%clk 0:01:45.9]} 20. e4 {[%clk 0:01:46.3]} 20... Rec8 {[%clk 0:01:30.2]} 21.
e5 {[%clk 0:01:40.8]} 21... Nd7 {[%clk 0:01:25.2]} 22. f4 {[%clk 0:01:41.2]}
22... Ba6 {[%clk 0:01:10.7]} 23. f5 {[%clk 0:01:36.4]} 23... Bxd3 {[%clk
0:01:06.1]} 24. Qxd3 {[%clk 0:01:35.7]} 24... Ng5 {[%clk 0:01:07.5]} 25. f6
{[%clk 0:01:09.2]} 25... Ne4 {[%clk 0:00:51.9]} 26. Be3 {[%clk 0:01:04]} 26...
g5 {[%clk 0:00:48.4]} 27. Ng3 {[%clk 0:00:51.6]} 27... Nf8 {[%clk 0:00:46.2]}
28. Nxe4 {[%clk 0:00:51.2]} 28... dxe4 {[%clk 0:00:45.9]} 29. Qxe4 {[%clk
0:00:52.7]} 29... Ne6 {[%clk 0:00:40.4]} 30. h4 {[%clk 0:00:38.4]} 30... Qb5
{[%clk 0:00:24.9]} 31. hxg5 {[%clk 0:00:29.2]} 31... hxg5 {[%clk 0:00:25.1]} 32.
Rf5 {[%clk 0:00:20.7]} 32... Qe2 {[%clk 0:00:20.7]} 33. Qf3 {[%clk 0:00:18]}
33... Qxf3 {[%clk 0:00:18.8]} 34. Rxf3 {[%clk 0:00:19.1]} 34... Kh7 {[%clk
0:00:15]} 35. Rc4 {[%clk 0:00:15.9]} 35... Kg6 {[%clk 0:00:15.7]} 36. Kg1 {[%clk
0:00:16.3]} 36... b3 {[%clk 0:00:15.1]} 37. a3 {[%clk 0:00:17]} 37... Rh8 {[%clk
0:00:13]} 38. Rxc6 {[%clk 0:00:15.2]} 38... Rac8 {[%clk 0:00:13]} 39. Rxc8
{[%clk 0:00:15]} 39... Rxc8 {[%clk 0:00:11.1]} 40. Rf1 {[%clk 0:00:15.4]} 40...
Rc2 {[%clk 0:00:10.2]} 41. Rb1 {[%clk 0:00:16.4]} 41... Nc7 {[%clk 0:00:09.5]}
42. Rc1 {[%clk 0:00:14.3]} 42... Rxc1+ {[%clk 0:00:07.1]} 43. Bxc1 {[%clk
0:00:14.9]} 43... Nd5 {[%clk 0:00:08.7]} 44. Kf2 {[%clk 0:00:15.2]} 44... Kf5
{[%clk 0:00:09]} 45. Kf3 {[%clk 0:00:15.9]} 45... g4+ {[%clk 0:00:09.1]} 46. Kf2
{[%clk 0:00:14]} 46... Ke4 {[%clk 0:00:07.2]} 47. Bg5 {[%clk 0:00:12.1]} 47...
Nc7 {[%clk 0:00:06.6]} 48. Be3 {[%clk 0:00:11.7]} 48... Ne6 {[%clk 0:00:06.3]}
49. Ke2 {[%clk 0:00:12.7]} 49... g3 {[%clk 0:00:06]} 50. Bg1 {[%clk 0:00:13.4]}
50... Nf4+ {[%clk 0:00:05.1]} 51. Kd2 {[%clk 0:00:13.2]} 51... Ne6 {[%clk
0:00:04.7]} 52. Kc3 {[%clk 0:00:14.3]} 1-0

[Event "*** Titled Tuesday 3|2 Blitz"]
[Site "Chess.com"]
[Date "2015.12.01"]
[Round "7"]
[White "Herman-NY"]
[Black "LADIESGET2KNOWME"]
[Result "0-1"]
[WhiteElo "2170"]
[BlackElo "2236"]
[TimeControl "180+2"]
[EndTime "12:32:07 PST"]
[Termination "LADIESGET2KNOWME won by resignation"]

1. e4 {[%clk 0:03:01.9]} 1... e6 {[%clk 0:03:01.1]} 2. d4 {[%clk 0:03:02.5]}
2... d5 {[%clk 0:03:02.7]} 3. Nd2 {[%clk 0:03:03.7]} 3... Nf6 {[%clk 0:03:04.2]}
4. e5 {[%clk 0:03:04.7]} 4... Nfd7 {[%clk 0:03:05]} 5. Bd3 {[%clk 0:03:06.3]}
5... c5 {[%clk 0:03:06.5]} 6. c3 {[%clk 0:03:08.2]} 6... Nc6 {[%clk 0:03:08]} 7.
Ne2 {[%clk 0:03:08.1]} 7... cxd4 {[%clk 0:03:09.3]} 8. cxd4 {[%clk 0:03:10]}
8... f6 {[%clk 0:03:10.9]} 9. exf6 {[%clk 0:03:11.1]} 9... Nxf6 {[%clk
0:03:12.8]} 10. Nf3 {[%clk 0:03:12.7]} 10... Bd6 {[%clk 0:03:14.2]} 11. O-O
{[%clk 0:03:13.7]} 11... O-O {[%clk 0:03:15.7]} 12. Ng3 {[%clk 0:03:14.9]} 12...
Bd7 {[%clk 0:03:12.7]} 13. Bg5 {[%clk 0:03:11.6]} 13... h6 {[%clk 0:03:12.6]}
14. Bd2 {[%clk 0:03:12.4]} 14... Be8 {[%clk 0:03:13]} 15. Bc3 {[%clk 0:03:11]}
15... Nh5 {[%clk 0:03:13.9]} 16. Ne5 {[%clk 0:03:07.6]} 16... Nf4 {[%clk
0:02:58.5]} 17. Re1 {[%clk 0:02:59]} 17... Nxe5 {[%clk 0:02:50.1]} 18. dxe5
{[%clk 0:02:59.4]} 18... Bc5 {[%clk 0:02:50.8]} 19. Nh1 {[%clk 0:02:34]} 19...
Bh5 {[%clk 0:02:16.4]} 20. Qc2 {[%clk 0:02:29.8]} 20... Qg5 {[%clk 0:02:01.9]}
21. Ng3 {[%clk 0:02:12.1]} 21... Nxd3 {[%clk 0:01:52.9]} 22. Qxd3 {[%clk
0:02:10.7]} 22... Bxf2+ {[%clk 0:01:53.8]} 23. Kh1 {[%clk 0:02:11.8]} 23... Bxe1
{[%clk 0:01:53.9]} 24. Rxe1 {[%clk 0:02:13.7]} 24... Rf2 {[%clk 0:01:37.4]} 25.
Bd4 {[%clk 0:02:08.2]} 25... Bg6 {[%clk 0:01:28.4]} 26. Qb5 {[%clk 0:01:51.6]}
26... Rf7 {[%clk 0:01:09.2]} 27. Be3 {[%clk 0:01:24.9]} 27... Qxe5 {[%clk
0:01:06.7]} 28. Bd2 {[%clk 0:01:25.9]} 28... Qf6 {[%clk 0:00:59.8]} 29. Bc3
{[%clk 0:01:20.6]} 29... d4 {[%clk 0:00:53.3]} 30. Rf1 {[%clk 0:01:18.1]} 30...
Qd8 {[%clk 0:00:46.1]} 31. Rxf7 {[%clk 0:01:15.7]} 31... Bxf7 {[%clk 0:00:48]}
32. Bd2 {[%clk 0:01:15.1]} 32... Qd5 {[%clk 0:00:43.5]} 33. Qb4 {[%clk
0:01:16.1]} 33... Be8 {[%clk 0:00:37.5]} 34. Ne2 {[%clk 0:01:07.2]} 34... Bc6
{[%clk 0:00:37.4]} 35. Nf4 {[%clk 0:01:08.1]} 35... Qb5 {[%clk 0:00:31.7]} 36.
Qxd4 {[%clk 0:01:06]} 36... Qf1+ {[%clk 0:00:31]} 37. Qg1 {[%clk 0:01:07]} 37...
Qxg1+ {[%clk 0:00:31.3]} 38. Kxg1 {[%clk 0:01:08.9]} 38... e5 {[%clk 0:00:32.1]}
39. Ne2 {[%clk 0:01:05.2]} 39... Rd8 {[%clk 0:00:31.2]} 40. Bc3 {[%clk
0:01:06.4]} 40... e4 {[%clk 0:00:28.8]} 41. Kf2 {[%clk 0:01:00]} 41... Rf8+
{[%clk 0:00:19.1]} 42. Ke3 {[%clk 0:00:59.7]} 42... Rf1 {[%clk 0:00:20.5]} 43.
Nf4 {[%clk 0:00:53.3]} 43... Ra1 {[%clk 0:00:17]} 44. a3 {[%clk 0:00:52.9]}
44... Rd1 {[%clk 0:00:17.8]} 45. h4 {[%clk 0:00:33.6]} 45... Kf7 {[%clk
0:00:16]} 46. h5 {[%clk 0:00:32.1]} 46... Rh1 {[%clk 0:00:15.3]} 47. Bd4 {[%clk
0:00:31.4]} 47... a6 {[%clk 0:00:15.9]} 48. Bc3 {[%clk 0:00:32.6]} 48... Bd7
{[%clk 0:00:11.8]} 49. Kxe4 {[%clk 0:00:32.8]} 49... Bg4 {[%clk 0:00:13]} 50.
Kd5 {[%clk 0:00:29.1]} 50... Bxh5 {[%clk 0:00:13.4]} 51. Kd6 {[%clk 0:00:30.1]}
51... Bg6 {[%clk 0:00:12.9]} 52. Nxg6 {[%clk 0:00:10.8]} 52... Kxg6 {[%clk
0:00:13.9]} 53. Kc7 {[%clk 0:00:12.7]} 53... b5 {[%clk 0:00:13.8]} 54. Kb6
{[%clk 0:00:13.4]} 54... Rg1 {[%clk 0:00:12.7]} 55. Kxa6 {[%clk 0:00:14.5]}
55... Rxg2 {[%clk 0:00:14.1]} 56. Kxb5 {[%clk 0:00:16.2]} 56... h5 {[%clk
0:00:15.6]} 57. a4 {[%clk 0:00:18.1]} 57... h4 {[%clk 0:00:16.4]} 58. a5 {[%clk
0:00:19.2]} 58... h3 {[%clk 0:00:17]} 59. a6 {[%clk 0:00:19.2]} 59... h2 {[%clk
0:00:15.6]} 60. a7 {[%clk 0:00:20.5]} 60... h1=Q {[%clk 0:00:16.8]} 61. a8=Q
{[%clk 0:00:21.7]} 61... Rg5+ {[%clk 0:00:17.6]} 0-1

[Event "*** Titled Tuesday 3|2 Blitz"]
[Site "Chess.com"]
[Date "2015.12.01"]
[Round "7"]
[White "DeviatkinAndrey"]
[Black "MinhGTrAn"]
[Result "1-0"]
[WhiteElo "2530"]
[BlackElo "2603"]
[TimeControl "180+2"]
[EndTime "12:32:43 PST"]
[Termination "DeviatkinAndrey won by resignation"]

1. e4 {[%clk 0:03:01.9]} 1... c5 {[%clk 0:02:59.3]} 2. c3 {[%clk 0:03:00]} 2...
Nf6 {[%clk 0:03:00]} 3. e5 {[%clk 0:03:01.1]} 3... Nd5 {[%clk 0:03:01.3]} 4. d4
{[%clk 0:03:02.4]} 4... cxd4 {[%clk 0:03:02.9]} 5. Qxd4 {[%clk 0:03:03.9]} 5...
e6 {[%clk 0:03:00.7]} 6. Bd3 {[%clk 0:03:04.9]} 6... Nc6 {[%clk 0:03:00.3]} 7.
Qe4 {[%clk 0:03:06]} 7... d6 {[%clk 0:02:59.5]} 8. exd6 {[%clk 0:03:06.3]} 8...
Bxd6 {[%clk 0:03:01.4]} 9. Nf3 {[%clk 0:03:07.6]} 9... Nf6 {[%clk 0:02:46.4]}
10. Qh4 {[%clk 0:03:04.8]} 10... h6 {[%clk 0:02:47]} 11. Bc2 {[%clk 0:02:40.6]}
11... e5 {[%clk 0:02:29.2]} 12. Nbd2 {[%clk 0:02:19.7]} 12... Be6 {[%clk
0:02:09.9]} 13. O-O {[%clk 0:02:10.4]} 13... O-O {[%clk 0:02:04.8]} 14. Re1
{[%clk 0:01:52.8]} 14... Ng4 {[%clk 0:01:52.7]} 15. Qxd8 {[%clk 0:01:42.4]}
15... Raxd8 {[%clk 0:01:54.6]} 16. Ne4 {[%clk 0:01:43.8]} 16... Be7 {[%clk
0:01:50.3]} 17. h3 {[%clk 0:01:43.6]} 17... Nf6 {[%clk 0:01:51.9]} 18. Nxf6+
{[%clk 0:01:33]} 18... Bxf6 {[%clk 0:01:53.2]} 19. Be3 {[%clk 0:01:31.5]} 19...
Rd7 {[%clk 0:01:47.5]} 20. Be4 {[%clk 0:01:27.9]} 20... Rfd8 {[%clk 0:01:44.8]}
21. Bc5 {[%clk 0:01:22.1]} 21... Bd5 {[%clk 0:01:05.4]} 22. b4 {[%clk
0:01:09.1]} 22... b6 {[%clk 0:00:42]} 23. b5 {[%clk 0:01:09.7]} 23... Na5 {[%clk
0:00:23.2]} 24. Bb4 {[%clk 0:01:10.3]} 24... Nc4 {[%clk 0:00:21.8]} 25. Rad1
{[%clk 0:00:48.6]} 25... Be6 {[%clk 0:00:16.1]} 26. Rxd7 {[%clk 0:00:48.4]}
26... Rxd7 {[%clk 0:00:18]} 27. a4 {[%clk 0:00:46.9]} 27... g6 {[%clk
0:00:17.2]} 28. g4 {[%clk 0:00:41.9]} 28... Bg7 {[%clk 0:00:17]} 29. Bc2 {[%clk
0:00:28.3]} 29... Bd5 {[%clk 0:00:13.9]} 30. Be4 {[%clk 0:00:28.8]} 30... Be6
{[%clk 0:00:14.5]} 31. Bc2 {[%clk 0:00:29.3]} 31... Rd8 {[%clk 0:00:12.8]} 32.
Kg2 {[%clk 0:00:28.3]} 32... Bd5 {[%clk 0:00:12.6]} 33. Be4 {[%clk 0:00:29.4]}
33... Be6 {[%clk 0:00:13.9]} 34. Bc2 {[%clk 0:00:30.3]} 34... Nb2 {[%clk
0:00:13.1]} 35. Nxe5 {[%clk 0:00:22.5]} 35... Rd2 {[%clk 0:00:14.2]} 36. Bb1
{[%clk 0:00:21.5]} 36... Bd5+ {[%clk 0:00:11.5]} 37. Kg3 {[%clk 0:00:19.5]}
37... Nxa4 {[%clk 0:00:10.5]} 38. c4 {[%clk 0:00:15.3]} 38... Rb2 {[%clk
0:00:12]} 39. Nd3 {[%clk 0:00:15.2]} 39... Bxc4 {[%clk 0:00:05.5]} 40. Re8+
{[%clk 0:00:15.4]} 40... Kh7 {[%clk 0:00:06.2]} 41. Nxb2 {[%clk 0:00:17]} 41...
Bxb5 {[%clk 0:00:05.8]} 42. Ra8 {[%clk 0:00:13.1]} 42... Nxb2 {[%clk 0:00:07]}
43. Rxa7 {[%clk 0:00:13.9]} 43... Bc4 {[%clk 0:00:08.3]} 44. h4 {[%clk
0:00:13.6]} 44... Nd3 {[%clk 0:00:05.7]} 45. Bxd3 {[%clk 0:00:14]} 45... Bxd3
{[%clk 0:00:07.6]} 46. Rxf7 {[%clk 0:00:15.3]} 46... Kg8 {[%clk 0:00:09.2]} 47.
Rb7 {[%clk 0:00:15.6]} 47... b5 {[%clk 0:00:10.3]} 48. f3 {[%clk 0:00:14.6]}
48... g5 {[%clk 0:00:11.2]} 49. h5 {[%clk 0:00:15.4]} 49... Be5+ {[%clk
0:00:12]} 50. Kf2 {[%clk 0:00:15.9]} 50... Bd4+ {[%clk 0:00:13.5]} 51. Kg2
{[%clk 0:00:17.2]} 51... Bc4 {[%clk 0:00:13]} 52. Be1 {[%clk 0:00:15.9]} 52...
Be3 {[%clk 0:00:11.4]} 53. Bf2 {[%clk 0:00:16.4]} 53... Bf4 {[%clk 0:00:11.3]}
54. Bd4 {[%clk 0:00:17.3]} 54... Bd6 {[%clk 0:00:09.2]} 55. Rg7+ {[%clk
0:00:15.9]} 55... Kf8 {[%clk 0:00:10.6]} 56. Rh7 {[%clk 0:00:16.9]} 56... b4
{[%clk 0:00:06.1]} 57. Rxh6 {[%clk 0:00:17.9]} 57... Ke7 {[%clk 0:00:07.3]} 58.
Rh7+ {[%clk 0:00:19]} 58... Bf7 {[%clk 0:00:08]} 59. Rh8 {[%clk 0:00:18.8]}
59... b3 {[%clk 0:00:07.5]} 60. h6 {[%clk 0:00:18.9]} 60... Bg6 {[%clk
0:00:06.1]} 61. Rg8 {[%clk 0:00:19.4]} 61... Bc2 {[%clk 0:00:05.6]} 62. h7
{[%clk 0:00:20.7]} 62... Bxh7 {[%clk 0:00:05.1]} 63. Rg7+ {[%clk 0:00:21.8]}
63... Ke6 {[%clk 0:00:07]} 64. Rxh7 {[%clk 0:00:23.1]} 64... Kd5 {[%clk
0:00:08.9]} 65. Bb2 {[%clk 0:00:24.2]} 65... Kc4 {[%clk 0:00:10.5]} 66. Rb7
{[%clk 0:00:25]} 66... Bb4 {[%clk 0:00:09.9]} 67. Kf2 {[%clk 0:00:24.5]} 1-0